Cogmind - Beta 14 @@@ ROGUE MODE // 2025.01.17 @ 00:54:41 Player: Adam_the_Great Result: Destroyed by TG-O5W(R) with Subdweller Laser Performance ------------- Evolutions (0) 0 Regions Visited (3) 600 Robots Destroyed (25) 125 Value Destroyed (607) 607 Prototype IDs (0) 0 Alien Tech Used (0) 0 Bonus (0) 0 TOTAL SCORE: 1332 Bonus ------- None Cogmind --------- Core Integrity 0/250 Matter 274/300 Energy 220/250 System Corruption 2% Temperature Cool (18) Movement Treading (160) Location -10/Subcaves Parts ------- > --- POWER (1) -------- Ion Engine > --- PROPULSION (2) --- Light Treads Spiked Treads > --- UTILITY (2) ------ Small Storage Unit Signal Interpreter > --- WEAPON (2) ------- Beamcaster Flamer > --- INVENTORY (8) ---- Improved Ion Engine Light Treads Subdweller Optics Targeting Computer V3-11A's Pendant Particle Gun Heavy Assault Rifle Rocket Launcher Peak State ------------ > --- POWER ------------ Ion Engine > --- PROPULSION ------- Aluminum Leg Carbon-fiber Leg > --- UTILITY ---------- Small Storage Unit Signal Interpreter > --- WEAPON ----------- Beamcaster Heavy Assault Rifle > --- INVENTORY -------- Improved Ion Engine Light Treads Light Treads Improved Heat Sink Machine Analyzer Targeting Computer Small Laser Rocket Launcher [Rating: 15] Favorites ----------- Power Ion Engine Engine Ion Engine Propulsion Light Treads Treads Light Treads Leg Aluminum Leg Utility Small Storage Unit Device Heat Sink Storage Small Storage Unit Processor Signal Interpreter Protection Light Armor Plating Weapon Beamcaster Energy Gun Beamcaster Ballistic Gun Heavy Assault Rifle Special Weapon Flamer Build | -11 -10 -10 -10 ------- Run | Yrd Mat Min Sub Slots Evolved . | . . . . Power . | . . . . Propulsion . | . . . . Utility . | . . . . Weapon . | . . . . Parts Attached 24 | 6 10 4 4 Power 3 | 1 2 . . Engine 3 | 1 2 . . Core . | . . . . Reactor . | . . . . Propulsion 8 | 2 2 1 3 Treads 5 | 2 . . 3 Leg 3 | . 2 1 . Wheel . | . . . . Hover . | . . . . Flight . | . . . . Utility 5 | 1 4 . . Device 1 | . 1 . . Storage 2 | 1 1 . . Processor 1 | . 1 . . Hackware . | . . . . Protection 1 | . 1 . . Artifact . | . . . . Weapon 8 | 2 2 3 1 Energy Gun 3 | . 1 2 . Energy Cannon . | . . . . Ballistic Gun 4 | 2 1 1 . Ballistic Cannon . | . . . . Launcher . | . . . . Special Weapon 1 | . . . 1 Impact Weapon . | . . . . Slashing Weapon . | . . . . Piercing Weapon . | . . . . Special Melee Weapon . | . . . . Unidentified Prototypes . | . . . . Parts Lost 5 | . 5 . . Power 1 | . 1 . . Propulsion 1 | . 1 . . Utility 1 | . 1 . . Weapon 2 | . 2 . . Highest Loss Streak 2 | . 2 . . To Critical Strikes . | . . . . Average Slot Usage (%) 99 | . 96 100 100 Engine 13 | . 13 14 14 Treads 12 | . 9 . 20 Leg 15 | . 18 28 7 Storage 14 | . 14 14 14 Processor 11 | . 4 14 14 Protection 1 | . 5 . . Energy Gun 12 | . 7 14 14 Ballistic Gun 15 | . 18 13 14 Peak Build Rating 15 | 6 7 15 15 Average Rating 11 | 4 6 12 13 On Entrance 7 | . 6 7 15 Naked Turns . | . . . . Heaviest Build 18 | 13 16 18 18 Greatest Support 40 | 40 40 25 40 Greatest Overweight (x) . | . . . . Average Overweight (x) . | . . . . Largest Inventory Capacity 25 | 8 25 8 8 Average Capacity 7 | 7 8 8 8 Most Carried 8 | 1 8 8 8 Average Carried 6 | . 4 7 7 Final Capacity 8 | 8 8 8 8 Final Carried 8 | 1 5 8 8 Class Distribution -------------------- 87% | Scavenger-Mutant 12% | Mutant Dominant Class ---------------- Scavenger-Mutant | -10/Materials Scavenger-Mutant | -10/Mines Scavenger-Mutant | -10/Subcaves Resources | -11 -10 -10 -10 ----------- Run | Yrd Mat Min Sub Matter Collected 589 | 171 278 62 78 Remotely . | . . . . Salvage Created 774 | . 607 97 70 Parts 57 | . 45 7 5 Haulers Intercepted 1 | . 1 . . Recyclers Shooed . | . . . . Parts Field Recycled . | . . . . Retrieved Matter . | . . . . Parts Self-Destructed 2 | . . . 2 Prevented . | . . . . Kills | -11 -10 -10 -10 ------- Run | Yrd Mat Min Sub Combat Hostiles Destroyed 19 | . 14 2 3 Guns 18 | . 13 2 3 AOE 1 | . 1 . . Classes Destroyed 8 | . 6 1 1 Worker 2 | . 2 . . Builder 1 | . 1 . . Hauler 1 | . 1 . . Watcher 2 | . 2 . . Swarmer 5 | . 3 . 2 Grunt 12 | . 11 1 . Sentry 1 | . . 1 . Subdweller 1 | . . . 1 Best Kill Streak 5 | . 5 1 2 Combat Bots Only 3 | . 3 1 2 Max Kills in Single Turn 3 | . 3 1 2 Gunslinging 1 | . . . 1 Exploded 1 | . 1 . . Melee . | . . . . Uniques/NPCs Destroyed . | . . . . Combat | -11 -10 -10 -10 -------- Run | Yrd Mat Min Sub Hostile Shots Fired 139 | . 107 2 30 Missed 26 | . 23 1 2 Damage Taken 1461 | . 989 41 431 Core 250 | . 138 . 112 Absorbed by Shields . | . . . . Core Remaining (%) 100 | 100 . . . Volleys Fired 80 | . 57 4 19 Largest 2 | . 2 2 2 Hottest 175 | . 60 98 175 Shots Fired 139 | . 92 8 39 Gun 138 | . 92 8 38 Cannon . | . . . . Launcher . | . . . . Special 1 | . . . 1 Kinetic 101 | . 79 4 18 Thermal 38 | . 13 4 21 Explosive . | . . . . Electromagnetic . | . . . . Robot Hit Streak 13 | . 13 7 5 Robot Miss Streak 4 | . 3 1 4 Penetration Max . | . . . . Secondary Targets 3 | . 2 . 1 Max Gunslinging Chain 1 | . 1 . 1 Shots Hit Robots 75 | . 62 4 9 Core Hits 41 | . 33 4 4 Critical Kills 2 | . 1 1 . Critical Parts Destroyed . | . . . . Critical Strikes 4 | . 1 1 2 Burn 2 | . . . 2 Destroy 2 | . 1 1 . Melee Attacks . | . . . . Impact . | . . . . Slashing . | . . . . Piercing . | . . . . Sneak Attacks . | . . . . Combat Hostiles . | . . . . Follow-up Attacks . | . . . . Damage Inflicted 1157 | . 926 44 187 Guns 878 | . 647 44 187 Cannons . | . . . . Explosions 279 | . 279 . . Melee . | . . . . Ramming . | . . . . Kinetic 621 | . 549 9 63 Thermal 257 | . 98 35 124 Explosive 279 | . 279 . . Electromagnetic . | . . . . Impact . | . . . . Slashing . | . . . . Piercing . | . . . . Highest Corruption 2 | . 2 2 2 Average Corruption 1 | . 1 2 2 Corruption Purged . | . . . . Corruption Blocked . | . . . . Effects 26 | . 6 6 14 Message Errors 10 | . 2 3 5 Matter Fused 2 | . 1 1 . Heat Flow Errors 4 | . 1 1 2 Energy Discharges 3 | . . . 3 Data Loss (minor) 4 | . 1 1 2 Data Loss (major) 2 | . 1 . 1 Misfires 1 | . . . 1 Overload Shots . | . . . . Overflow Damage 2 | . 2 . . Projectiles . | . . . . Explosions 2 | . 2 . . Melee . | . . . . Knockbacks . | . . . . Impact . | . . . . Kinetic . | . . . . Secondary . | . . . . Self-Inflicted Damage . | . . . . Shots . | . . . . Rammed . | . . . . Targets Rammed . | . . . . Kicked . | . . . . Crushed . | . . . . Highest Temperature 281 | . 140 281 178 Average Temperature 40 | . 20 89 75 Received Heat Transfer 513 | . 411 6 96 Siege Activations . | . . . . Robots Corrupted . | . . . . Combat Hostiles . | . . . . Parts Fried . | . . . . Impact Corruptions . | . . . . Robots Melted . | . . . . Combat Hostiles . | . . . . Parts Melted . | . . . . Heat Transferred 670 | . 225 75 370 Parts Sabotaged . | . . . . Parts Stolen . | . . . . Parts Stripped . | . . . . Power Chain Reactions . | . . . . Alert | -11 -10 -10 -10 ------- Run | Yrd Mat Min Sub Peak Influence 325 | . 325 112 . Initial 72 | . . 72 . Average 111 | . 153 71 . Maximum Alert Level 1 | . 1 . . Low Security (%) 89 | 100 80 100 . Level 1 10 | . 19 . . Level 2 . | . . . . Level 3 . | . . . . Level 4 . | . . . . Level 5 . | . . . . High Security . | . . . . Max Security . | . . . . Squads Dispatched 2 | . 2 . . Investigation 2 | . 2 . . Extermination . | . . . . Reinforcement . | . . . . Assault . | . . . . Garrison . | . . . . Intercept . | . . . . Searches Triggered . | . . . . Construction Impeded . | . . . . Haulers Reinforced . | . . . . Active Scanning Responses . | . . . . Cargo Convoy Interrupts . | . . . . Stealth | -11 -10 -10 -10 --------- Run | Yrd Mat Min Sub Distress Signals 2 | . 2 . . Communications Jammed . | . . . . Distress Signals . | . . . . Times Spotted 32 | . 23 3 6 Peak Tracking Total 4 | . 4 2 3 Tactical Retreats 2 | . 1 . 1 Traps | -11 -10 -10 -10 ------- Run | Yrd Mat Min Sub Traps Triggered 4 | . 3 1 . Indirectly . | . . . . Trap Hack Attempts . | . . . . Triggered . | . . . . Disarmed . | . . . . Reprogrammed . | . . . . Reused . | . . . . Traps Extracted . | . . . . Installed . | . . . . Triggered . | . . . . Machines | -11 -10 -10 -10 ---------- Run | Yrd Mat Min Sub Machines Disabled 1 | . 1 . . Max in Single Turn 1 | . 1 . . Machines Repaired . | . . . . Machines Dismantled . | . . . . Machines Sabotaged . | . . . . Overloaded Fab Kills . | . . . . Hacking | -11 -10 -10 -10 --------- Run | Yrd Mat Min Sub Machines Accessed 3 | . 2 1 . Terminals 1 | . 1 . . Fabricators . | . . . . Repair Stations . | . . . . Recycling Units 1 | . 1 . . Scanalyzers . | . . . . Garrison Access . | . . . . Total Hacks 6 | . 5 1 . Successful 4 | . 3 1 . Failed 2 | . 2 . . Catastrophic 1 | . 1 . . Database Lockouts . | . . . . Manual . | . . . . Terminals 4 | . 4 . . Fabricators . | . . . . Repair Stations . | . . . . Recycling Units 1 | . 1 . . Scanalyzers . | . . . . Garrison Access . | . . . . Terminal Hacks 3 | . 2 1 . Record 2 | . 2 . . Open Door 1 | . . 1 . Fabricator Hacks . | . . . . Repair Station Hacks . | . . . . Recycling Unit Hacks 1 | . 1 . . Report Inventory 1 | . 1 . . Scanalyzer . | . . . . Garrison Access Hacks . | . . . . Unauthorized Hacks . | . . . . Terminals . | . . . . Fabricators . | . . . . Repair Stations . | . . . . Recycling Units . | . . . . Scanalyzers . | . . . . Garrison Access . | . . . . Data Cores Recovered . | . . . . Used . | . . . . Hacking Detections 1 | . 1 . . Full Trace Events 1 | . 1 . . Feedback Events . | . . . . Feedback Blocked . | . . . . Robot Schematics Acquired . | . . . . Robots Built . | . . . . Authchips . | . . . . Time . | . . . . Total Robot Build Rating . | . . . . Part Schematics Acquired . | . . . . Parts Built . | . . . . Authchips . | . . . . Time . | . . . . Total Part Build Rating . | . . . . Parts Repaired . | . . . . Time . | . . . . Parts Recycled . | . . . . Recycled Matter . | . . . . Retrieved Matter . | . . . . Retrieved Components . | . . . . Parts Scanalyzed . | . . . . Part Schematics Acquired . | . . . . Parts Damaged . | . . . . Bothacking | -11 -10 -10 -10 ------------ Run | Yrd Mat Min Sub Used RIF Installer . | . . . . Robots Hacked . | . . . . Non-combat . | . . . . Combat . | . . . . Robot Hacks Applied . | . . . . Relay Couplers Released . | . . . . Fabnet Peak Effective % . | . . . . Robots Rewired . | . . . . Allies Hacked . | . . . . Hacks Repelled . | . . . . Allies | -11 -10 -10 -10 -------- Run | Yrd Mat Min Sub Total Allies . | . . . . Largest Group . | . . . . Highest-Rated Group . | . . . . Highest-Rated Ally . | . . . . Total Orders . | . . . . Ally Attacks . | . . . . Total Damage . | . . . . Kills . | . . . . Allies Corrupted . | . . . . Allies Melted . | . . . . Intel | -11 -10 -10 -10 ------- Run | Yrd Mat Min Sub Robot Analysis Total . | . . . . Derelict Logs Recovered 1 | . . 1 . Drone Launches . | . . . . Drone Recoveries . | . . . . Exploration | -11 -10 -10 -10 ------------- Run | Yrd Mat Min Sub Turns Passed 2407 | 63 668 512 1164 Spaces Moved 1507 | 37 364 373 733 Core 5 | 5 . . . Treads 619 | 32 76 . 511 Legs 883 | . 288 373 222 Wheels . | . . . . Hover . | . . . . Flight . | . . . . Fastest Speed 50 | 50 120 120 120 Average Speed 136 | 145 128 120 147 Slowest Speed 160 | 160 160 120 160 Overloaded Moves . | . . . . Propulsion Burnouts . | . . . . Robots Hopped . | . . . . Cave-ins Triggered . | . . . . Exploration Rate (%) 40 | 3 51 63 45 Regions Visited 3 Branch Regions 2 Pre-discovered Areas 1 | . . 1 . Known Exits Taken 2 | . 1 1 . Unknown Exits Taken 1 | 1 . . . Scrap Searched 2 | . . 2 . Spaces Dug . | . . . . Terrain Destroyed 20 | . 20 . . Melee . | . . . . Projectile . | . . . . AOE 20 | . 20 . . Terrain Rammed . | . . . . Walls Destroyed . | . . . . Machines Disabled . | . . . . Actions | -11 -10 -10 -10 --------- Run | Yrd Mat Min Sub Total 1744 | 44 485 436 779 Wait 84 | . 38 35 11 Move 1504 | 36 363 372 733 Hop . | . . . . Pick Up 33 | 2 13 12 6 Fast Attach 6 | 5 1 . . Attach 9 | 1 6 1 1 Detach . | . . . . Swap 9 | . 3 3 3 Drop 19 | . 4 9 6 Fire 80 | . 57 4 19 Melee . | . . . . Ram . | . . . . Kick . | . . . . Crush . | . . . . Escape Stasis . | . . . . Rewire . | . . . . Trap . | . . . . Miscellaneous . | . . . . Route ------- -11/Scrapyard -10/Materials (discovered 2 exits: *Mat / *Min) -10/Mines (discovered 2 exits: *Mat / *Sub) -10/Subcaves (discovered 1 exit: [*Mat]) History --------- Turn | Location | Event 6 | -11/Scrapyard | Discovered new exit (range 15) 64 | -11/Scrapyard | Entered Materials 311 | -10/Materials | Build established: Mutant 376 | -10/Materials | Discovered new exit (range 9) 513 | -10/Materials | Discovered new exit (range 16) 616 | -10/Materials | Build established: Scavenger-Mutant 729 | -10/Materials | Core integrity fell below 50% 731 | -10/Materials | Identified exit to Mines 732 | -10/Materials | Entered Mines 754 | -10/Mines | Met a Derelict bent on vengeance 778 | -10/Mines | Met a Derelict who couldn't figure out how to use a Trap Extractor 831 | -10/Mines | Discovered new exit (range 6) 833 | -10/Mines | Received a Rocket Launcher from a helpful Derelict 876 | -10/Mines | Identified exit to Materials 920 | -10/Mines | Found a hidden stash of uninstalled traps 948 | -10/Mines | Joined a pair of Derelicts in attacking an 0b10 outpost 1017 | -10/Mines | Learned location of Recycling (-8) 1233 | -10/Mines | Discovered new exit (range 10) 1243 | -10/Mines | Identified exit to Subcaves 1244 | -10/Mines | Entered Subcaves 1408 | -10/Subcaves | Discovered new exit (range 16) 1456 | -10/Subcaves | Shifting Twisted Machinery released Shrapnel Trap 1492 | -10/Subcaves | Shifting Twisted Machinery released Mak. Hammer 1511 | -10/Subcaves | Visited triangular shrine 1520 | -10/Subcaves | Found Prototype Device 1535 | -10/Subcaves | A swath of the cavern ceiling suddenly collapsed 1643 | -10/Subcaves | Shifting Twisted Machinery released Sub. Beam Cannon 1659 | -10/Subcaves | Shifting Twisted Machinery released Sub. Laser 1758 | -10/Subcaves | A swath of the cavern ceiling suddenly collapsed 2211 | -10/Subcaves | Shifting Twisted Machinery released Sub. Optics 2211 | -10/Subcaves | Shifting Twisted Machinery released Spk. Treads 2390 | -10/Subcaves | Core integrity fell below 20% 2408 | -10/Subcaves | Destroyed by TG-O5W(R) with Subdweller Laser Last Messages --------------- 01937_ System corrupted: Heat flow error (+218). 01969_ System corrupted: Component data lost. 01973_ Acquired 8 matter. 02075_ System corrupted: Heat flow error (+172). 02099_ System corrupted: Component data lost. 02119_ &UUXC6ZSMH E8/<6UWPKZPYK I&SDSQ#> 02186_ System corrupted: Energy discharge (-97). Sub. Optics falls loose from the Twisted Machinery. Spk. Treads falls loose from the Twisted Machinery. 02219_ Dropped Sub. Optics. 02219_ Acquired Sub. Optics. 02231_ Subatomizers dissect the Sub. Optics. 02247_ Dropped Lgt. Treads. 02247_ Acquired Spk. Treads. 02249_ Dropped Lgt. Treads. 02251_ Acquired Lgt. Treads. 02252_ Subatomizers dissect the Sub. Optics. 02305_ 6GXFQ4X1ITPMUHAFYH/54:R|U:&&3# 02401_ N6-T6N(R) suffers critical hit (Burn). 02406_ N6-T6N(R) destroyed. Map ----- +----------------------------------------------------+ | ?????????????????????????????????????????????????? | | ?????????????????????????????????????????????????? | | ?????????????????????????????????????????????????? | | ?????????????????????????????????????????????????? | | ?????????????????????????????????????????????????? | | ?????????????????????????????????????????????????? | | ??????????????????????????????? ?????????????????? | | ??????????????????????????????? ?????????????????? | | ??????????????????????????????? ?????????????????? | | ??????????????????????????????? ?????????????????? | | ??????????????????????????????? ?????????????????? | | ??????????????????????????????? ?????????????????? | | ??????????????????????????????? ##???????????????? | | ??????????????????????????????? ####????????????? | | ??????????????????????????????? #????????????? | | ??????????????????????????????? #????????????? | | ??????????????????###?????????? #????????????? | | ??????????????????# ##?????????# #?????????????? | | ??????????????????# ##???????## #?????????????? | | ?????????????????## ?????#### ###???????????? | | ?????????????????# ?????# ##??????????? | | ?????????????????# ##????# #??????????? | | ??????????????????# #???## #???????? | | ?????????????????## ###?# ### #???????? | | ?????????????????# ###& #??# #???????? | | ?????????????????# @%= ##?? ##???????? | | ??????????? ##???# R* #??? ##????????? | | ??????????? ##?## #??? ##?????????? | | ?????????? #?# ##???? #??????????? | | ?????????? #?## ##????? #??????????? | | ????###### #???# ### #??????? ??????????? | | ???## ##### ##?### #??????? ?????????? | | #### ## ##????###???????? ?????????? | | # ## #???????????????? ????????? | | # ### ##???????????????? ?????????? | | ### #### ##?????????????????????????? | | ## #### #?????????????????????????? | | # ### ##### ##????????????????????????? | | ##### #### ### ###??????????????????????? | | ???# ##?## #??????????????????????? | | ??# ##???## ### ##??????????????????????? | | ??## ##?????###?####???????????????????????? | | ???#########?????????????????????????????????????? | | ?????????????????????????????????????????????????? | | ?????????????????????????????????????????????????? | | ?????????????????????????????????????????????????? | | ?????????????????????????????????????????????????? | | ?????????????????????????????????????????????????? | | ?????????????????????????????????????????????????? | | ?????????????????????????????????????????????????? | +----------------------------------------------------+ Best States ------------- Heat Dissipation 35 Energy Generation 10 Energy Capacity 250 Matter Stores 300 Matter Capacity 300 Sight Range 16 Terrain Scan Density 10 Armor Coverage 150 Evasion (%) 55 Recoil Reduction 2 Item Schematics ----------------- None Robot Schematics ------------------ None Fabricated ------------ Nothing Alien Tech Used ----------------- None Achievements -------------- None Challenges ------------ None Game ------ Seed LinkedKineticSpear Manual? 0 Play Time 00:23:41 Cumulative 15.2 hours Start 2025.01.17 @ 00:32:19 End 2025.01.17 @ 00:54:41 Sessions 1 Manual Loads 0 Difficulty Rogue Special Mode None Game No. 22 Rogue 22 Adventurer 0 Explorer 0 Win Type - Total 0 Types 0/0/0/0/0/0/0/0/0 Lore% 14 Gallery% 18 Achievement% 16 Wizard Run 0 Options --------- Layout 0 ASCII 0 Keyboard 0 Movement Mouse Keybinds 0 Fullscreen 1 Font 24/Smallcaps Map View 76x50 Zoom Use 0% Tactical HUD 1 Map Filters NONE Filters NONE Steam 1 RUN: 4de71131-da13-4859-99df-ff41ca04aff3